Workbook

Sheet Tabelle1
A1: Heizung | K1: Warmwasser | W1: HZ | X1: WW
A2: Ver-brauchs-Monat | B2: Monats- Verbrauch lt. Techem KW | C2: Monats Vergleichs- Haushalte KW | D2: Durch-schnitt eigener Jahr | E2: Durch-schnit Vergleichs- Hasushalt Jahr | F2: Durchschnitt zu Vergleichs- Haushalte in % | G2: Durchschnitt zu Vergleichs- Haushalte in KW | H2: Mehr-verbrauch zum VJ KW | I2: Mehr-verbrauch zum VJ % | J2: =COUNTA(B6:B31) -> 24 | K2: Monats- Verbrauch lt. Techem KW | L2: Monats Vergleichs- Haushalte KW | M2: Durch-schnitt eigener Jahr | N2: Durch-schnit Vergleichs- Hasushalt Jahr | O2: Durchschnit Vergleichs- Haushalte in % | P2: Durchschnit Vergleichs- Haushalte in KW | Q2: Mehr-verbrauch zum VJ KW | R2: Mehr-verbrauch zum VJ % | S2: HZ Jahr aufgelaufen | T2: WW Jahr aufgelaufen | U2: VJ aufgelaufen | W2: =SUM(B32:B43) -> 1665 | X2: =SUM(K32:K313) -> 500
B3: eigener aufgelaufener | C3: Vg. Haush. aufgelaufener | K3: eigener aufgelaufener | L3: Vg. Haush. aufgelaufener
B4: Verbrauch | C4: Verbrauch | D4: Verbrauch | E4: Verbrauch | F4: Verbrauch | G4: Verbrauch | K4: Verbrauch | L4: Verbrauch | M4: Verbrauch | N4: Verbrauch | O4: Verbrauch | P4: Verbrauch
B5: =SUM(B6:B31) -> 5745 | C5: =SUM(C6:C31) -> 22527 | D5: =SUM(B5/J2) -> 239.375 | E5: =SUM(C5/J2) -> 938.625 | F5: =SUM(SUM(G5/C5)) -> -0.7449726994 | G5: =SUM(B5-C5) -> -16782 | K5: =SUM(K6:K31) -> 1726 | L5: =SUM(L6:L31) -> 5175 | M5: =SUM(K5/J2) -> 71.91666667 | N5: =SUM(L5/J2) -> 215.625 | O5: =SUM(SUM(P5/L5)) -> -0.66647343 | P5: =SUM(K5-L5) -> -3449
A6: 2022-11-05 | B6: 87 | C6: 1186 | F6: =SUM(SUM(G6/C6)) -> -0.9266441821 | G6: =SUM(B6-C6) -> -1099 | K6: 163 | L6: 196 | O6: =IF(K6="","",SUM(P6/L6)) -> -0.1683673469 | P6: =SUM(K6-L6) -> -33 | U6: =IF(C6="","","Aktuell aufgel.") -> Aktuell aufgel.
A7: 2022-12-05 | B7: 488 | C7: 1581 | F7: =SUM(SUM(G7/C7)) -> -0.6913345984 | G7: =SUM(B7-C7) -> -1093 | K7: 238 | L7: 203 | O7: =IF(K7="","",SUM(P7/L7)) -> 0.1724137931 | P7: =SUM(K7-L7) -> 35 | U7: Aktuell aufgel.
A8: 2023-01-05 | B8: 439 | C8: 1680 | F8: -0.7386904762 | G8: -1241 | K8: 138 | L8: 203 | O8: =IF(K8="","",SUM(P8/L8)) -> -0.3201970443 | P8: =SUM(K8-L8) -> -65 | U8: Aktuell aufgel.
A9: 2023-02-05 | B9: 430 | C9: 1482 | F9: -0.709851552 | G9: -1052 | K9: 77 | L9: 183 | O9: =SUM(SUM(P9/L9)) -> -0.5792349727 | P9: -106 | U9: Aktuell aufgel.
A10: 2023-03-05 | B10: 326 | C10: 1285 | F10: -0.7463035019 | G10: -959 | K10: 64 | L10: 203 | O10: -0.684729064 | P10: -139 | U10: Aktuell aufgel.
A11: 2023-04-05 | B11: 147 | C11: 790 | F11: -0.8139240506 | G11: -643 | K11: 77 | L11: 196 | O11: -0.6071428571 | P11: -119 | U11: Aktuell aufgel.
A12: 2023-05-05 | B12: 23 | C12: 395 | F12: -0.9417721519 | G12: -372 | K12: 64 | L12: 203 | O12: -0.684729064 | P12: -139 | U12: Aktuell aufgel.
A13: 2023-06-05 | B13: 0 | C13: 129 | F13: -1 | G13: -129 | K13: 39 | L13: 196 | O13: -0.8010204082 | P13: -157 | U13: Aktuell aufgel.
A14: 2023-07-05 | B14: 0 | C14: 133 | F14: -1 | G14: -133 | K14: 51 | L14: 203 | O14: -0.7487684729 | P14: -152 | U14: Aktuell aufgel.
A15: 2023-08-05 | C15: 133 | F15: -1 | G15: -133 | K15: 51 | L15: 203 | O15: -0.7487684729 | P15: -152 | U15: Aktuell aufgel.
A16: 2023-09-05 | B16: 2 | C16: 296 | F16: -0.9932432432 | G16: -294 | K16: 51 | L16: 196 | O16: -0.7397959184 | P16: -145 | U16: Aktuell aufgel.
A17: 2023-10-05 | B17: 49 | C17: 790 | F17: -0.9379746835 | G17: -741 | I17: =SUM(SUM(H17/B17)) -> 0 | K17: 64 | L17: 203 | O17: -0.684729064 | P17: -139 | R17: =SUM(SUM(Q17/K17)) -> 0 | U17: Aktuell aufgel.
A18: 2023-11-05 | B18: 357 | C18: 1186 | F18: -0.6989881956 | G18: -829 | H18: =IF(B18="","",SUM(B18-B6)) -> 270 | I18: 0.756302521 | K18: 77 | L18: 196 | O18: -0.6071428571 | P18: -119 | Q18: =IF(K18="","",SUM(K18-K6)) -> -86 | R18: -1.116883117 | U18: Aktuell aufgel.
A19: 2023-12-05 | B19: 687 | C19: 1581 | F19: -0.5654648956 | G19: -894 | H19: 199 | I19: 0.2896652111 | K19: 39 | L19: 203 | O19: -0.8078817734 | P19: -164 | Q19: -199 | R19: -5.102564103 | U19: Aktuell aufgel.
A20: 2024-01-05 | B20: 734 | C20: 1680 | F20: -0.5630952381 | G20: -946 | H20: 295 | I20: 0.4019073569 | K20: 39 | L20: 203 | O20: -0.8078817734 | P20: -164 | Q20: -99 | R20: -2.538461538 | S20: =IF(C20="","",SUM(B$20:B20)) -> 734 | T20: =IF(C20="","",SUM(K$20:K20)) -> 39 | U20: Aktuell aufgel. | W20: =IF(C20="","",SUM(B$8:B8)) -> 439 | X20: =IF(C20="","",SUM(K$8:K8)) -> 138
A21: 2024-02-05 | B21: 328 | C21: 1482 | F21: -0.7786774629 | G21: -1154 | H21: =IF(B21="","",SUM(B21-B9)) -> -102 | I21: =SUM(SUM(H21/B21)) -> -0.3109756098 | K21: 39 | L21: 183 | O21: -0.7868852459 | P21: -144 | Q21: =IF(K21="","",SUM(K21-K9)) -> -38 | R21: =SUM(SUM(Q21/K21)) -> -0.9743589744 | S21: =IF(C21="","",SUM(B$20:B21)) -> 1062 | T21: =IF(C21="","",SUM(K$20:K21)) -> 78 | U21: Aktuell aufgel. | W21: =IF(C21="","",SUM(B$8:B9)) -> 869 | X21: =IF(C21="","",SUM(K$8:K9)) -> 215
A22: 2024-03-05 | B22: 128 | C22: 1285 | F22: -0.9003891051 | G22: -1157 | H22: =IF(B22="","",SUM(B22-B10)) -> -198 | I22: =SUM(SUM(H22/B22)) -> -1.546875 | K22: 64 | L22: 203 | O22: -0.684729064 | P22: -139 | Q22: =IF(K22="","",SUM(K22-K10)) -> 0 | R22: =SUM(SUM(Q22/K22)) -> 0 | S22: =IF(C22="","",SUM(B$20:B22)) -> 1190 | T22: =IF(C22="","",SUM(K$20:K22)) -> 142 | U22: Aktuell aufgel. | W22: =IF(C22="","",SUM(B$8:B10)) -> 1195 | X22: =IF(C22="","",SUM(K$8:K10)) -> 279
A23: 2024-04-05 | B23: 170 | C23: 790 | F23: -0.7848101266 | G23: -620 | H23: 23 | I23: 0.1352941176 | K23: 39 | L23: 196 | O23: -0.8010204082 | P23: -157 | Q23: -38 | R23: -0.9743589744 | S23: =IF(C23="","",SUM(B$20:B23)) -> 1360 | T23: =IF(C23="","",SUM(K$20:K23)) -> 181 | U23: =IF(C23="","","Aktuell aufgel.") -> Aktuell aufgel. | W23: =IF(C23="","",SUM(B$8:B11)) -> 1342 | X23: =IF(C23="","",SUM(K$8:K11)) -> 356
A24: 2024-05-05 | B24: 0 | C24: 395 | F24: -1 | G24: -395 | H24: -23 | I24: =SUM(SUM(H24/B24)) ->  | K24: 51 | L24: 203 | O24: -0.7487684729 | P24: -152 | Q24: -13 | R24: -0.2549019608 | S24: =IF(C24="","",SUM(B$20:B24)) -> 1360 | T24: =IF(C24="","",SUM(K$20:K24)) -> 232 | U24: =IF(C24="","","Aktuell aufgel.") -> Aktuell aufgel. | W24: =IF(C24="","",SUM(B$8:B12)) -> 1365 | X24: =IF(C24="","",SUM(K$8:K12)) -> 420
A25: 2024-06-05 | B25: 2 | C25: 129 | F25: -0.984496124 | G25: -127 | H25: 2 | I25: 1 | K25: 26 | L25: 196 | O25: -0.8673469388 | P25: -170 | Q25: -13 | R25: -0.5 | S25: =IF(C25="","",SUM(B$20:B25)) -> 1362 | T25: =IF(C25="","",SUM(K$20:K25)) -> 258 | U25: =IF(C25="","","Aktuell aufgel.") -> Aktuell aufgel. | W25: =IF(C25="","",SUM(B$8:B13)) -> 1365 | X25: =IF(C25="","",SUM(K$8:K13)) -> 459
A26: 2024-07-05 | B26: 59 | C26: 133 | F26: -0.5563909774 | G26: -74 | H26: 59 | I26: 1 | K26: 46 | L26: 203 | O26: -0.7733990148 | P26: -157 | Q26: -5 | R26: -0.1086956522 | S26: =IF(C26="","",SUM(B$20:B26)) -> 1421 | T26: =IF(C26="","",SUM(K$20:K26)) -> 304 | U26: Aktuell aufgel. | W26: =IF(C26="","",SUM(B$8:B14)) -> 1365 | X26: =IF(C26="","",SUM(K$8:K14)) -> 510
A27: 2024-08-05 | C27: 133 | F27: -1 | G27: -133 | K27: 46 | L27: 203 | O27: -0.7733990148 | P27: -157 | Q27: -5 | R27: -0.1086956522 | S27: =IF(C27="","",SUM(B$20:B27)) -> 1421 | T27: =IF(C27="","",SUM(K$20:K27)) -> 350 | U27: Aktuell aufgel. | W27: =IF(C27="","",SUM(B$8:B15)) -> 1365 | X27: =IF(C27="","",SUM(K$8:K15)) -> 561
A28: 2024-09-05 | B28: 6 | C28: 296 | F28: -0.9797297297 | G28: -290 | H28: 4 | I28: 0.6666666667 | K28: 23 | L28: 196 | O28: -0.8826530612 | P28: -173 | Q28: -28 | R28: -1.217391304 | S28: =IF(C28="","",SUM(B$20:B28)) -> 1427 | T28: =IF(C28="","",SUM(K$20:K28)) -> 373 | U28: Aktuell aufgel. | W28: =IF(C28="","",SUM(B$8:B16)) -> 1367 | X28: =IF(C28="","",SUM(K$8:K16)) -> 612
A29: 2024-10-05 | B29: 140 | C29: 790 | F29: -0.8227848101 | G29: -650 | H29: 91 | I29: 0.65 | K29: 46 | L29: 203 | O29: -0.7733990148 | P29: -157 | Q29: -18 | R29: -0.3913043478 | S29: =IF(C29="","",SUM(B$20:B29)) -> 1567 | T29: =IF(C29="","",SUM(K$20:K29)) -> 419 | U29: Aktuell aufgel. | W29: =IF(C29="","",SUM(B$8:B17)) -> 1416 | X29: =IF(C29="","",SUM(K$8:K17)) -> 676
A30: 2024-11-05 | B30: 491 | C30: 1186 | F30: -0.5860033727 | G30: -695 | H30: 134 | I30: 0.2729124236 | K30: 80 | L30: 196 | O30: -0.5918367347 | P30: -116 | Q30: 3 | R30: 0.0375 | S30: =IF(C30="","",SUM(B$20:B30)) -> 2058 | T30: =IF(C30="","",SUM(K$20:K30)) -> 499 | U30: Aktuell aufgel. | W30: =IF(C30="","",SUM(B$8:B18)) -> 1773 | X30: =IF(C30="","",SUM(K$8:K18)) -> 753
A31: 2024-12-05 | B31: 652 | C31: 1581 | F31: -0.587602783 | G31: -929 | H31: -35 | I31: -0.0536809816 | K31: 34 | L31: 203 | O31: -0.8325123153 | P31: -169 | Q31: -5 | R31: -0.1470588235 | S31: =IF(C31="","",SUM(B$20:B31)) -> 2710 | T31: =IF(C31="","",SUM(K$20:K31)) -> 533 | U31: Aktuell aufgel. | W31: =IF(C31="","",SUM(B$8:B19)) -> 2460 | X31: =IF(C31="","",SUM(K$8:K19)) -> 792
A32: 2025-01-05 | B32: 715 | C32: 1682 | F32: =SUM(SUM(G32/C32)) -> -0.5749108205 | G32: =SUM(B32-C32) -> -967 | H32: =IF(B32="","",SUM(B32-B20)) -> -19 | I32: =SUM(SUM(H32/B32)) -> -0.02657342657 | K32: 57 | L32: 203 | O32: =SUM(SUM(P32/L32)) -> -0.7192118227 | P32: =SUM(K32-L32) -> -146 | Q32: =IF(K32="","",SUM(K32-K20)) -> 18 | R32: =SUM(SUM(Q32/K32)) -> 0.3157894737 | S32: =IF(C32="","",SUM(B$32:B32)) -> 715 | T32: =IF(C32="","",SUM(K$32:K32)) -> 57 | U32: =IF(C32="","","Aktuell aufgel.") -> Aktuell aufgel. | W32: =IF(C32="","",SUM(B$8:B20)) -> 3194 | X32: =IF(C32="","",SUM(K$8:K20)) -> 831
A33: 2025-02-05 | B33: 584 | C33: 1482 | F33: -0.6059379217 | G33: -898 | H33: 256 | I33: 0.4383561644 | K33: 46 | L33: 183 | O33: -0.7486338798 | P33: -137 | Q33: 7 | R33: 0.152173913 | S33: =IF(C33="","",SUM(B$32:B33)) -> 1299 | T33: =IF(C33="","",SUM(K$32:K33)) -> 103 | U33: Aktuell aufgel. | W33: =IF(C33="","",SUM(B$20:B21)) -> 1062 | X33: =IF(C33="","",SUM(K$20:K21)) -> 78
A34: 2025-03-05 | B34: 338 | C34: 1285 | F34: -0.7369649805 | G34: -947 | H34: 210 | I34: 0.6213017751 | K34: 57 | L34: 203 | O34: -0.7192118227 | P34: -146 | Q34: -7 | R34: -0.1228070175 | S34: =IF(C34="","",SUM(B$32:B34)) -> 1637 | T34: =IF(C34="","",SUM(K$32:K34)) -> 160 | U34: Aktuell aufgel. | W34: =IF(C34="","",SUM(B$20:B22)) -> 1190 | X34: =IF(C34="","",SUM(K$20:K22)) -> 142
A35: 2025-04-05 | B35: 28 | C35: 790 | F35: -0.964556962 | G35: -762 | H35: -142 | I35: -5.071428571 | K35: 46 | L35: 196 | O35: -0.7653061224 | P35: -150 | Q35: 7 | R35: 0.152173913 | S35: =IF(C35="","",SUM(B$32:B35)) -> 1665 | T35: =IF(C35="","",SUM(K$32:K35)) -> 206 | U35: Aktuell aufgel. | W35: =IF(C35="","",SUM(B$8:B23)) -> 3820 | X35: =IF(C35="","",SUM(K$8:K23)) -> 973
A36: 2025-05-05 | B36: 0 | C36: 395 | F36: -1 | G36: -395 | H36: =IF(B36="","",SUM(B36-B24)) -> 0 | I36: =SUM(SUM(H36/B36)) ->  | K36: 46 | L36: 203 | O36: -0.7733990148 | P36: -157 | Q36: -5 | R36: -0.1086956522 | S36: =IF(C36="","",SUM(B$32:B36)) -> 1665 | T36: =IF(C36="","",SUM(K$32:K36)) -> 252 | U36: Aktuell aufgel. | W36: =IF(C36="","",SUM(B$8:B24)) -> 3820 | X36: =IF(C36="","",SUM(K$8:K24)) -> 1024
A37: 2025-06-05 | B37: 0 | C37: 129 | F37: -1 | G37: -129 | H37: -2 | K37: 66 | L37: 196 | O37: -0.6632653061 | P37: -130 | Q37: 40 | R37: 0.6060606061 | S37: =IF(C37="","",SUM(B$32:B37)) -> 1665 | T37: =IF(C37="","",SUM(K$32:K37)) -> 318 | U37: Aktuell aufgel. | W37: =IF(C37="","",SUM(B$8:B25)) -> 3822 | X37: =IF(C37="","",SUM(K$8:K25)) -> 1050
A38: 2025-07-05 | C38: 133 | F38: -1 | G38: -133 | K38: 50 | L38: 203 | O38: -0.7536945813 | P38: -153 | Q38: 4 | R38: 0.08 | U38: Aktuell aufgel. | W38: =IF(C38="","",SUM(B$8:B26)) -> 3881 | X38: =IF(C38="","",SUM(K$8:K26)) -> 1096
A39: 2025-08-05 | C39: 133 | F39: -1 | G39: -133 | K39: 66 | L39: 203 | O39: -0.6748768473 | P39: -137 | Q39: 20 | R39: 0.303030303 | U39: Aktuell aufgel. | W39: =IF(C39="","",SUM(B$8:B27)) -> 3881 | X39: =IF(C39="","",SUM(K$8:K27)) -> 1142
A40: 2025-09-05 | C40: 296 | F40: -1 | G40: -296 | K40: 66 | L40: 196 | O40: -0.6632653061 | P40: -130 | Q40: 43 | R40: 0.6515151515 | U40: Aktuell aufgel. | W40: =IF(C40="","",SUM(B$8:B28)) -> 3887 | X40: =IF(C40="","",SUM(K$8:K28)) -> 1165
A41: 2025-10-05 | C41: 3 | F41: -1 | G41: -3 | P41: 0 | U41: Aktuell aufgel. | W41: =IF(C41="","",SUM(B$8:B29)) -> 4027 | X41: =IF(C41="","",SUM(K$8:K29)) -> 1211
A42: 2025-11-05 | G42: 0 | P42: 0 | W42: =IF(C42="","",SUM(B$8:B30)) ->  | X42: =IF(C42="","",SUM(K$8:K30)) -> 
A43: 2025-12-05 | G43: 0 | P43: 0 | W43: =IF(C43="","",SUM(B$8:B31)) ->  | X43: =IF(C43="","",SUM(K$8:K31)) -> 
A44: 2026-01-05 | G44: 0 | P44: 0 | W44: =IF(C44="","",SUM(B$8:B32)) ->  | X44: =IF(C44="","",SUM(K$8:K32)) -> 
A45: 2026-02-05 | G45: 0 | P45: 0 | W45: =IF(C45="","",SUM(B$8:B33)) ->  | X45: =IF(C45="","",SUM(K$8:K33)) -> 
A46: 2026-03-05 | G46: 0 | P46: 0 | W46: =IF(C46="","",SUM(B$8:B34)) ->  | X46: =IF(C46="","",SUM(K$8:K34)) -> 
A47: 2026-04-05 | G47: 0 | P47: 0 | W47: =IF(C47="","",SUM(B$8:B35)) ->  | X47: =IF(C47="","",SUM(K$8:K35)) -> 

Sheet Tabelle2
A1: =B1/C1 ->  | B1: 3
